[Event "Pia Cramling Ladies Open 2018"]
[Site "Stockholm"]
[Date "2018.09.01"]
[Round "1"]
[White "Andersson, Christin"]
[Black "Akerlund, Lucia"]
[Result "1-0"]
[ECO "C40"]
[WhiteElo "2077"]
[BlackElo "1339"]
[Annotator "NA RC"]
[PlyCount "57"]
[EventDate "2018.09.01"]
[EventType "swiss"]
[EventCountry "SWE"]
[SourceTitle "playchess.com"]
[Source "ChessBase"]
[SourceQuality "1"]
[TimeControl "1800+10"]

{[%evp 8,57,181,65,60,109,379,218,252,234,265,141,195,189,233,169,279,198,179,167,164,101,96,93,107,96,282,268,275,276,272,260,265,273,633,382,875,740,1488,1262,1869,1138,1072,1556,1744,2024,1650,1487,2481,1043,5389,1104]} 1. e4 {[%emt 0:00:00]} e5 {[%emt 0:00:00]} 2. Nf3 {[%emt 0:00:00]} d5 {[%emt 0:00:39]} 3. Nxe5 {[%emt 0:00:14]} Qf6 {[%emt 0:00:50]} 4. d4 {[%emt 0:00:26]} Bd6 {[%emt 0:01:03]} 5. Bd3 {[%emt 0:00:54]} (5. exd5 $18 Ne7 6. Nc3) 5... Bxe5 {[%emt 0:01:17]} 6. dxe5 {[%emt 0:00:03]} Qc6 $2 {[%emt 0:01:44]} ({Better is} 6... Qxe5 $14 7. Nc3 dxe4) 7. exd5 {[%emt 0:00:13]} Qxd5 {[%emt 0:00:23] [#]} 8. O-O $1 {[%emt 0:00:05]} Ne7 {[%emt 0:00:43]} 9. Bf4 {[%emt 0:00:21]} ({White should play} 9. Nc3 $18 Qd8 10. Qh5) 9... O-O {[%emt 0:00:54]} (9... Bf5 $16 {is a better defense.} 10. Nc3 Qd7) 10. Nc3 {[%emt 0:00:12]} Qc6 {[%emt 0:00:43]} 11. Be4 {[%emt 0:00:19]} Qa6 {[%emt 0:00:37]} (11... Qc5 {is a better defense.} 12. e6 (12. Qh5 f5 $18) 12... fxe6) 12. Qf3 {[%emt 0:00:22]} Nd7 {[%emt 0:00:57]} 13. Rad1 {[%emt 0:00:32]} Nc5 {[%emt 0:01:11]} 14. Nd5 {[%emt 0:01:14]} (14. Bg5 $18 Nxe4 15. Qxe4 (15. Bxe7 Nxc3 16. Qxc3 Re8 $14)) 14... Nxd5 {[%emt 0:02:08]} 15. Bxd5 {[%emt 0:00:05]} c6 {[%emt 0:00:59]} 16. Bb3 {[%emt 0:00:07]} Bf5 $2 {[%emt 0:02:30]} (16... Nxb3 $16 17. axb3 Bf5) 17. Be3 $1 {[%emt 0:00:29]} Be4 {[%emt 0:00:57]} 18. Qf4 {[%emt 0:00:26]} Nxb3 {[%emt 0:03:00]} 19. Qxe4 {[%emt 0:00:07]} Na5 {[%emt 0:02:21]} 20. b3 {[%emt 0:01:01]} b5 $2 {[%emt 0:02:05]} (20... c5 21. Rd6 Nc6 22. Bxc5 Rfe8) 21. Rd6 {[%emt 0:00:35]} Rac8 $2 {[%emt 0:01:47]} (21... Rae8 22. Rd7 Nb7) 22. Qg4 {[%emt 0:00:29]} Rce8 {[%emt 0:03:47]} 23. Bh6 {[%emt 0:00:14]} g6 {[%emt 0:00:39]} 24. Bxf8 {[%emt 0:00:09]} Rxf8 {[%emt 0:00:04]} 25. e6 {[%emt 0:00:12]} Qb7 {[%emt 0:00:54]} 26. Rd7 {[%emt 0:00:19]} Qb8 {[%emt 0:00:27]} 27. exf7+ {[%emt 0:00:15]} Rxf7 {[%emt 0:00:11]} 28. Qe6 {[%emt 0:00:09]} (28. Rxf7 $142 Kxf7 29. Qd7+ Kf6 30. Re1) 28... Qf8 {[%emt 0:01:20]} 29. Rxa7 $18 {[%emt 0:00:16]} (29. Rfd1 $142 a6 30. Rxf7 Qxf7 31. Rd8+ Kg7 32. Rd7 Qxd7 33. Qxd7+ Kf6 34. Qd8+ Ke6 35. Qxa5) 1-0

[Event "Pia Cramling Ladies Open 2018"]
[Site "Stockholm"]
[Date "2018.09.01"]
[Round "1"]
[White "Tuominen, Tanja"]
[Black "Mirabdulla, Zulfiya"]
[Result "1-0"]
[ECO "C47"]
[WhiteElo "2076"]
[BlackElo "1350"]
[Annotator "NA RC"]
[PlyCount "43"]
[EventDate "2018.09.01"]
[EventType "swiss"]
[EventCountry "SWE"]
[SourceTitle "playchess.com"]
[Source "ChessBase"]
[SourceQuality "1"]
[TimeControl "1800+10"]

{[%evp 8,40,-21,-15,-4,-2,3,-1,27,34,43,20,34,33,55,40,47,55,147,137,293,288,362,351,382,336,354,361,429,364,372,320,522,485,1406]} 1. e4 {[%emt 0:00:00]} e5 {[%emt 0:00:00]} 2. Nf3 {[%emt 0:00:10]} Nc6 {[%emt 0:00:20]} 3. Nc3 {[%emt 0:00:58]} Nf6 {[%emt 0:00:10]} 4. d4 {[%emt 0:00:07]} exd4 {[%emt 0:00:33]} 5. Nxd4 {[%emt 0:00:06]} Bb4 {[%emt 0:00:56]} 6. Nxc6 {[%emt 0:00:09]} bxc6 {[%emt 0:01:56]} 7. Bd3 {[%emt 0:00:08]} Bxc3+ {[%emt 0:00:44]} 8. bxc3 {[%emt 0:00:08]} O-O {[%emt 0:00:53]} 9. O-O {[%emt 0:00:35] LiveBook: 5 Games} Re8 {[%emt 0:01:54]} 10. Re1 {[%emt 0:04:38]} d6 {[%emt 0:01:12]} 11. Bg5 {[%emt 0:00:19]} h6 {[%emt 0:01:08]} 12. Bh4 {[%emt 0:00:20]} Qe7 {[%emt 0:02:30] C47: Scotch Four Knights and Four Knights with 4 g3} ({Besser ist} 12... g5 $14 13. Bg3 Bg4) 13. f4 {[%emt 0:01:43]} Bg4 $146 {[%emt 0:02:31]} (13... g5 $16) ({Predecessor:} 13... Qe6 14. e5 Nd5 15. exd6 Qd7 16. Rxe8+ Qxe8 17. dxc7 Nxc7 18. Qf3 Ne6 19. Re1 Qd7 20. f5 Nc5 21. Re7 Qd5 22. Re8+ Kh7 23. Qg3 Nxd3 24. Bf6 {1-0 (24) Sebastian,D (2379)-Cladouras,P (2330) Germany 2003}) 14. Bxf6 $1 {[%emt 0:00:29]} Qxf6 {[%emt 0:02:33]} 15. Qxg4 {[%emt 0:00:09]} Qxc3 {[%emt 0:00:25]} 16. Rab1 {[%emt 0:04:09]} Qd4+ {[%emt 0:01:14]} 17. Kh1 {[%emt 0:00:16]} c5 {[%emt 0:02:25]} 18. Qe2 {[%emt 0:03:36]} d5 {[%emt 0:00:59]} 19. Qe3 {[%emt 0:01:33]} Qc3 $2 {[%emt 0:01:54]} (19... Qxe3 20. Rxe3 Rab8 21. Rxb8 Rxb8) 20. e5 {[%emt 0:00:57]} c4 $18 {[%emt 0:00:54]} (20... Qd4 $142 21. Qg3 c4) 21. Bh7+ {[%emt 0:00:14]} Kxh7 {[%emt 0:02:34]} 22. Qxc3 {[%emt 0:00:04]} 1-0

[Event "Pia Cramling Ladies Open 2018"]
[Site "Stockholm"]
[Date "2018.09.01"]
[Round "1"]
[White "Fransson, Angelina"]
[Black "Johansson-Ohman, Linnea"]
[Result "1-0"]
[ECO "B10"]
[WhiteElo "2004"]
[BlackElo "1495"]
[Annotator "NA"]
[PlyCount "21"]
[EventDate "2018.09.01"]
[EventType "swiss"]
[EventCountry "SWE"]
[SourceTitle "playchess.com"]
[Source "ChessBase"]
[SourceQuality "1"]
[TimeControl "1800+10"]

1. e4 {[%emt 0:00:00]} c6 {[%emt 0:00:05]} 2. Nf3 {[%emt 0:00:00]} d5 {[%emt 0:00:20]} 3. exd5 {[%emt 0:00:01]} cxd5 {[%emt 0:00:10]} 4. Ne5 {[%emt 0:00:01]} g6 {[%emt 0:03:40]} 5. d4 {[%emt 0:00:12]} a6 {[%emt 0:01:40]} 6. c3 {[%emt 0:00:34]} b5 {[%emt 0:01:11]} 7. Bd3 {[%emt 0:00:30]} Bg7 {[%emt 0:00:59]} 8. O-O {[%emt 0:00:29]} Nd7 {[%emt 0:03:15]} 9. Qe2 {[%emt 0:00:37]} Ngf6 {[%emt 0:03:35]} 10. Nc6 {[%emt 0:00:22]} O-O {[%emt 0:05:50]} 11. Nxd8 {[%emt 0:00:05]} 1-0

[Event "Pia Cramling Ladies Open 2018"]
[Site "Stockholm"]
[Date "2018.09.01"]
[Round "1"]
[White "Mariano-Wagman, Cristine Rose"]
[Black "Lindberg, Angelica"]
[Result "1-0"]
[ECO "C20"]
[WhiteElo "1906"]
[BlackElo "1349"]
[Annotator "NA RC"]
[PlyCount "51"]
[EventDate "2018.09.01"]
[EventType "swiss"]
[EventCountry "SWE"]
[SourceTitle "playchess.com"]
[Source "ChessBase"]
[SourceQuality "1"]
[TimeControl "1800+10"]

1. e4 {[%emt 0:00:00]} e5 {[%emt 0:00:00]} 2. d3 {[%emt 0:00:10]} Nc6 {[%emt 0:00:10]} 3. Ne2 {[%emt 0:00:10]} Bc5 {[%emt 0:00:11]} 4. g3 {[%emt 0:00:29]} d6 {[%emt 0:00:30]} 5. Bg2 {[%emt 0:00:08]} h6 {[%emt 0:00:50]} 6. O-O {[%emt 0:00:09]} Nf6 {[%emt 0:00:59]} 7. h3 {[%emt 0:00:12]} O-O {[%emt 0:00:39]} 8. Kh2 {[%emt 0:00:05]} Re8 {[%emt 0:00:25]} 9. Nbc3 {[%emt 0:00:10]} Be6 {[%emt 0:01:43]} 10. f4 {[%emt 0:00:10]} Nd4 {[%emt 0:03:44]} 11. f5 {[%emt 0:00:36]} Nxe2 {[%emt 0:01:31]} 12. fxe6 {[%emt 0:00:35]} Nxc3 {[%emt 0:01:30]} 13. exf7+ {[%emt 0:00:05]} Kxf7 {[%emt 0:02:32]} 14. bxc3 {[%emt 0:00:06]} Ke7 {[%emt 0:02:36]} 15. d4 {[%emt 0:00:24]} Bb6 {[%emt 0:01:42]} 16. Ba3 {[%emt 0:00:26]} Kd7 {[%emt 0:00:38]} 17. Qd3 {[%emt 0:01:32]} Kc8 {[%emt 0:01:15]} 18. Rad1 {[%emt 0:00:13]} Kb8 {[%emt 0:03:08]} 19. dxe5 {[%emt 0:03:13]} Nd7 {[%emt 0:01:56]} 20. exd6 {[%emt 0:00:54]} c6 {[%emt 0:01:53]} 21. c4 {[%emt 0:01:17]} Re5 {[%emt 0:01:37]} 22. Bb2 {[%emt 0:00:24]} Nc5 {[%emt 0:00:24]} 23. Qe2 {[%emt 0:01:42]} Rxe4 {[%emt 0:00:06]} 24. Bxe4 {[%emt 0:00:06]} Qe8 {[%emt 0:00:49]} 25. Bxg7 {[%emt 0:01:20]} Qxe4 {[%emt 0:00:44]} 26. Rf8+ {[%emt 0:00:38] Kc7 [%clk 0:02:15]} 1-0

[Event "Pia Cramling Ladies Open 2018"]
[Site "Stockholm"]
[Date "2018.09.01"]
[Round "1"]
[White "Tolstoy, Anastasia"]
[Black "Bengtsson, Jessica"]
[Result "0-1"]
[ECO "B30"]
[WhiteElo "1228"]
[BlackElo "1986"]
[Annotator "NA RC"]
[PlyCount "134"]
[EventDate "2018.09.01"]
[EventType "swiss"]
[EventCountry "SWE"]
[SourceTitle "playchess.com"]
[Source "ChessBase"]
[SourceQuality "1"]
[TimeControl "1800+10"]

1. e4 {[%emt 0:00:00]} c5 {[%emt 0:00:00]} 2. Nf3 {[%emt 0:00:07]} Nc6 {[%emt 0:00:04]} 3. b3 {[%emt 0:00:33]} e5 {[%emt 0:00:23]} 4. Bb2 {[%emt 0:00:09]} d6 {[%emt 0:00:04]} 5. d3 {[%emt 0:01:35] B50: Sicilian: 2...d6, Miscellaneous} (5. Bc4 g6 6. Nc3 Bg7 7. Nd5 Nge7 8. Qe2 a6 9. a4 O-O 10. O-O Nxd5 11. Bxd5 Nb4 12. Ne1 Nxd5 13. exd5 Re8 {0-1 (63) Kilic,E (2317)-Alekseenko,K (2627) Ankara 2018}) 5... Nf6 {[%emt 0:00:16]} 6. Nbd2 {[%emt 0:00:19]} Be7 {[%emt 0:00:15]} 7. a4 $146 {[%emt 0:00:41]} ({Predecessor:} 7. g3 O-O 8. Bg2 h6 9. O-O Be6 10. Ne1 Qd7 11. f4 Bh3 12. f5 Bxg2 13. Nxg2 {½-½ (42) Papp Zoltan,C (2350)-Lipinsky,F (2395) Szeged 1998}) 7... O-O {[%emt 0:00:15]} 8. Nc4 {[%emt 0:00:34]} Bg4 {[%emt 0:00:37]} 9. Be2 {[%emt 0:00:12]} h6 {[%emt 0:01:12]} 10. h3 {[%emt 0:02:07]} Be6 {[%emt 0:00:13]} 11. Qd2 {[%emt 0:01:36]} a6 {[%emt 0:02:26]} 12. g4 {[%emt 0:00:42]} Nh7 {[%emt 0:01:35]} 13. Ne3 {[%emt 0:02:04]} Ng5 {[%emt 0:02:03]} 14. Ng2 {[%emt 0:00:58]} Nxf3+ {[%emt 0:00:59]} 15. Bxf3 {[%emt 0:00:02]} Nd4 {[%emt 0:00:42]} 16. Bxd4 {[%emt 0:00:28]} cxd4 {[%emt 0:00:09]} 17. Rc1 $2 {[%emt 0:01:59]} (17. O-O $17 {was necessary.}) 17... Bg5 {[%emt 0:00:24]} 18. Qd1 {[%emt 0:00:15]} Qa5+ {[%emt 0:01:11]} 19. Ke2 {[%emt 0:00:44]} Bxc1 {[%emt 0:00:21]} 20. Qxc1 {[%emt 0:00:02]} Rac8 {[%emt 0:01:10]} 21. Qd2 {[%emt 0:01:08]} Qc3 {[%emt 0:01:27]} 22. Qxc3 {[%emt 0:00:34]} Rxc3 {[%emt 0:00:05]} 23. Kd2 {[%emt 0:00:08]} Rfc8 {[%emt 0:00:04]} 24. Ne1 {[%emt 0:00:08]} R8c5 {[%emt 0:00:24]} 25. h4 {[%emt 0:00:21]} a5 {[%emt 0:00:51]} 26. g5 {[%emt 0:00:10]} hxg5 {[%emt 0:00:06]} 27. hxg5 {[%emt 0:00:05]} g6 {[%emt 0:00:09]} 28. Bd1 {[%emt 0:00:53]} d5 {[%emt 0:00:30]} 29. exd5 {[%emt 0:01:01]} Bxd5 {[%emt 0:00:08]} 30. Rh3 {[%emt 0:00:20]} Kf8 {[%emt 0:01:44]} 31. Nf3 {[%emt 0:00:31]} Be6 {[%emt 0:02:57]} 32. Rh8+ {[%emt 0:00:42]} Ke7 {[%emt 0:00:03]} 33. Ng1 {[%emt 0:00:24]} Rc8 {[%emt 0:00:32]} 34. Rh7 {[%emt 0:00:18]} Bd5 {[%emt 0:00:22]} 35. Ne2 {[%emt 0:00:20]} R3c7 {[%emt 0:00:10]} 36. Ng3 {[%emt 0:00:28]} Kd6 {[%emt 0:00:28]} 37. Rh4 {[%emt 0:03:08]} Re8 {[%emt 0:02:29]} 38. Ne4+ {[%emt 0:02:04]} Bxe4 {[%emt 0:00:57]} 39. Rxe4 {[%emt 0:00:02]} Rh8 {[%emt 0:00:34]} 40. Bf3 {[%emt 0:01:19]} Rh2 {[%emt 0:00:15]} 41. Re2 {[%emt 0:00:12]} Rh3 {[%emt 0:00:31]} 42. Bg4 {[%emt 0:01:09]} Rh4 {[%emt 0:00:05]} 43. Bf3 {[%emt 0:00:16]} Rf4 {[%emt 0:00:05]} 44. Be4 {[%emt 0:01:02]} Rg4 {[%emt 0:00:04]} 45. Bf3 {[%emt 0:01:18]} Rxg5 {[%emt 0:00:04]} 46. Re1 {[%emt 0:00:12]} Rf5 {[%emt 0:00:04]} 47. Bd1 {[%emt 0:00:20]} Rxf2+ {[%emt 0:00:05]} 48. Re2 {[%emt 0:00:07]} Rxe2+ {[%emt 0:00:03]} 49. Kxe2 {[%emt 0:00:04]} f5 {[%emt 0:00:02]} 50. Kd2 {[%emt 0:00:15]} e4 {[%emt 0:00:03]} 51. dxe4 {[%emt 0:00:09]} fxe4 {[%emt 0:00:01]} 52. Be2 {[%emt 0:00:18]} Ke5 {[%emt 0:00:03]} 53. Bc4 {[%emt 0:00:13]} g5 {[%emt 0:00:06]} 54. Ke2 {[%emt 0:00:08]} Rh7 {[%emt 0:00:07]} 55. Kf2 {[%emt 0:00:32]} Kf4 {[%emt 0:00:02]} 56. Bd5 {[%emt 0:00:11]} b6 {[%emt 0:00:06]} 57. Kg2 {[%emt 0:00:20]} Ke3 {[%emt 0:00:05]} 58. Kf1 {[%emt 0:00:15]} Rh2 {[%emt 0:00:03]} 59. Bc4 {[%emt 0:00:12]} d3 {[%emt 0:00:08]} 60. cxd3 {[%emt 0:00:14]} exd3 {[%emt 0:00:03]} 61. Bxd3 {[%emt 0:00:08]} Kxd3 {[%emt 0:00:04]} 62. b4 {[%emt 0:00:10]} axb4 {[%emt 0:00:03]} 63. a5 {[%emt 0:00:01]} bxa5 {[%emt 0:00:01]} 64. Kg1 {[%emt 0:00:03]} Re2 {[%emt 0:00:02]} 65. Kf1 {[%emt 0:00:01]} b3 {[%emt 0:00:01]} 66. Kg1 {[%emt 0:00:01]} b2 {[%emt 0:00:02]} 67. Kf1 {[%emt 0:00:01]} b1=Q# 0-1

[Event "Pia Cramling Ladies Open 2018"]
[Site "Stockholm"]
[Date "2018.09.01"]
[Round "2"]
[White "Cramling Bellon, Anna"]
[Black "Andersson, Christin"]
[Result "1-0"]
[ECO "D93"]
[WhiteElo "2009"]
[BlackElo "2077"]
[Annotator "NA"]
[PlyCount "107"]
[EventDate "2018.09.01"]
[EventType "swiss"]
[EventCountry "SWE"]
[SourceTitle "playchess.com"]
[Source "ChessBase"]
[SourceQuality "1"]
[TimeControl "1800+10"]

1. d4 {[%emt 0:00:00]} d5 {[%emt 0:00:00]} 2. c4 {[%emt 0:00:00]} c6 {[%emt 0:00:00]} 3. Nc3 {[%emt 0:00:43]} Nf6 {[%emt 0:00:03]} 4. Nf3 {[%emt 0:00:08]} g6 {[%emt 0:00:13]} 5. Bf4 {[%emt 0:00:44]} Bg7 {[%emt 0:00:14]} 6. e3 {[%emt 0:00:25] LiveBook: 410 Games} O-O {[%emt 0:00:19]} 7. Bd3 {[%emt 0:01:41]} Nbd7 {[%emt 0:00:56]} 8. cxd5 {[%emt 0:00:25]} Nxd5 {[%emt 0:00:04]} 9. Nxd5 {[%emt 0:01:17]} cxd5 {[%emt 0:00:01]} 10. O-O {[%emt 0:00:07]} Re8 {[%emt 0:00:53]} 11. Bb5 {[%emt 0:01:58] D93: Grünfeld: 4 Nf3 Bg7 5 Bf4 0-0 6 e3} (11. Qb3 e5 12. Bg5 Qa5 13. dxe5 Nxe5 14. Nxe5 Bxe5 15. Bb5 Re6 16. f4 Bf6 17. Qxd5 Rb6 18. Bxf6 Rxf6 19. Rfd1 Bg4 20. Qg5 Bxd1 21. Qxf6 Qe1+ 22. Bf1 Qxe3+ 23. Kh1 Qe1 24. Kg1 Qe3+ {½-½ (24) Reis,A (2086)-Azevedo Junior,J (1802) Belem 2016}) 11... a6 {[%emt 0:01:01]} 12. Rc1 $146 {[%emt 0:01:52]} ({Predecessor:} 12. Bxd7 Bxd7 13. b4 f6 14. Rc1 Rc8 15. Qb3 Bb5 16. Rfe1 Qd7 17. Rc5 Bc4 18. Qc2 e5 19. dxe5 Rxc5 20. bxc5 fxe5 {0-1 (35) Tunc,H (1534)-Voss,J (1823) Chemnitz 2009}) 12... e6 {[%emt 0:01:10]} ({Don't blunder} 12... axb5 $2 13. Bc7 $18) 13. Ba4 {[%emt 0:02:11]} (13. Bc7 $16 Qe7 14. Qa4) 13... b5 {[%emt 0:00:03]} 14. Bb3 {[%emt 0:00:04]} a5 {[%emt 0:01:11]} 15. a4 {[%emt 0:00:50]} Ba6 {[%emt 0:00:13]} 16. Re1 {[%emt 0:00:37]} Rc8 {[%emt 0:00:26]} 17. Rxc8 {[%emt 0:02:42]} Qxc8 {[%emt 0:00:04]} 18. Qd2 {[%emt 0:00:04]} b4 {[%emt 0:00:47]} 19. Rc1 {[%emt 0:02:25]} Bc4 {[%emt 0:00:03]} 20. Bd1 {[%emt 0:00:57]} Qa8 $1 {[%emt 0:01:35]} 21. b3 {[%emt 0:02:54]} Ba6 {[%emt 0:00:04]} 22. Be2 {[%emt 0:04:37]} Nf6 {[%emt 0:00:29]} 23. Bxa6 {[%emt 0:00:28]} Qxa6 {[%emt 0:00:01]} 24. Qc2 {[%emt 0:00:15]} Bf8 {[%emt 0:02:57]} (24... Ne4 $11 {hält das Gleichgewicht.}) 25. Ne5 {[%emt 0:03:10]} Ne4 {[%emt 0:00:58]} 26. Qc7 {[%emt 0:00:33]} Re7 {[%emt 0:00:17]} 27. Qd8 {[%emt 0:00:01]} Qd6 {[%emt 0:02:25]} 28. Qxd6 $2 {[%emt 0:00:27]} (28. Qa8 g5 {[#]} 29. Ng6 $1 {[%mdl 512]}) 28... Nxd6 {[%emt 0:00:02]} 29. Nxg6 {[%emt 0:00:12]} hxg6 {[%emt 0:00:05]} 30. Bxd6 {[%emt 0:00:02]} Ra7 {[%emt 0:00:38]} 31. Rc8 {[%emt 0:00:08]} Kg7 {[%emt 0:00:15]} 32. Bxf8+ {[%emt 0:00:02]} Kf6 {[%emt 0:00:01]} 33. Bc5 {[%emt 0:00:03]} Ra6 {[%emt 0:00:01]} 34. Kf1 {[%emt 0:00:09]} Kf5 {[%emt 0:00:01]} 35. Ke2 {[%emt 0:00:25]} f6 {[%emt 0:00:07]} 36. f3 {[%emt 0:00:15]} e5 {[%emt 0:00:04]} 37. Rd8 {[%emt 0:01:12]} Rc6 {[%emt 0:00:12]} 38. Rxd5 {[%emt 0:00:15]} Rc7 {[%emt 0:00:02]} 39. Kd3 {[%emt 0:00:21]} Rh7 {[%emt 0:00:06]} 40. h3 {[%emt 0:00:03]} Ke6 {[%emt 0:00:19]} 41. Rd6+ {[%emt 0:00:02]} Kf5 {[%emt 0:00:02]} 42. Ra6 {[%emt 0:00:31]} Rd7 {[%emt 0:00:21]} 43. Rxa5 {[%emt 0:00:05]} Kg5 {[%emt 0:00:01]} 44. Ra6 {[%emt 0:00:06]} f5 {[%emt 0:00:05]} 45. Rd6 {[%emt 0:00:12]} Rh7 {[%emt 0:00:13]} 46. Bxb4 {[%emt 0:00:02]} f4 {[%emt 0:00:03]} 47. dxe5 {[%emt 0:00:16]} Rb7 {[%emt 0:00:15]} 48. Rd4 $18 {[%emt 0:00:12]} fxe3 {[%emt 0:00:08]} 49. Kxe3 {[%emt 0:00:03]} Kf5 {[%emt 0:00:01]} 50. f4 {[%emt 0:00:03]} g5 {[%emt 0:00:10]} 51. g4+ {[%emt 0:00:14]} Kg6 {[%emt 0:00:06]} 52. f5+ {[%emt 0:00:03]} Kh6 {[%emt 0:00:05]} 53. e6 {[%emt 0:00:09]} Kg7 {[%emt 0:00:20]} 54. Rd7+ {[%emt 0:00:03]} 1-0

[Event "Pia Cramling Ladies Open 2018"]
[Site "Stockholm"]
[Date "2018.09.01"]
[Round "2"]
[White "Bengtsson, Jessica"]
[Black "Berg, Maria"]
[Result "1-0"]
[ECO "C68"]
[WhiteElo "1986"]
[BlackElo "1722"]
[Annotator "NA"]
[PlyCount "108"]
[EventDate "2018.09.01"]
[EventType "swiss"]
[EventCountry "SWE"]
[SourceTitle "playchess.com"]
[Source "ChessBase"]
[SourceQuality "1"]
[TimeControl "1800+10"]

1. e4 {[%emt 0:00:00]} e5 {[%emt 0:00:00]} 2. Nf3 {[%emt 0:00:03]} Nc6 {[%emt 0:00:00]} 3. Bb5 {[%emt 0:00:11]} a6 {[%emt 0:00:15]} 4. Bxc6 {[%emt 0:00:14]} dxc6 {[%emt 0:00:35]} 5. Nc3 {[%emt 0:00:07]} Bg4 {[%emt 0:03:57]} 6. h3 {[%emt 0:00:09]} Bxf3 $1 {[%emt 0:00:50]} 7. Qxf3 {[%emt 0:00:06] LiveBook: 48 Games} Bc5 {[%emt 0:01:00] C68: Spanische Partie (Abtauschvariante)} (7... Qd7 8. d3 f6 9. Bd2 Bd6 10. Qg3 Qf7 11. f4 Ne7 12. O-O Ng6 13. f5 Ne7 14. Qf2 Rg8 15. Kh1 g6 {½-½ (56) Socko,B (2604)-Harikrishna,P (2762) Germany 2017}) 8. O-O {[%emt 0:00:16]} Qf6 {[%emt 0:02:26]} 9. Qg3 {[%emt 0:01:40]} Ne7 {[%emt 0:00:41]} 10. d3 {[%emt 0:01:25]} O-O-O $146 {[%emt 0:00:54]} ({Vorgänger:} 10... Ng6 11. Bg5 Qd6 12. Ne2 h6 13. Be3 O-O-O 14. Rad1 Bxe3 15. Qxe3 c5 16. a3 {½-½ (66) Acs,G (2240)-Toth,J (2187) Hungary 2007}) 11. Be3 {[%emt 0:02:02]} Bd4 {[%emt 0:02:13]} 12. Na4 {[%emt 0:05:47]} Qg6 {[%emt 0:04:42]} 13. Qh4 {[%emt 0:03:35]} f6 {[%emt 0:01:23]} 14. Nc5 {[%emt 0:01:31]} Bxc5 {[%emt 0:03:09]} 15. Bxc5 {[%emt 0:00:04]} Qf7 {[%emt 0:00:07]} 16. a4 {[%emt 0:03:20]} g5 {[%emt 0:00:45]} 17. Qg4+ {[%emt 0:00:35]} Kb8 {[%emt 0:00:03]} 18. b4 {[%emt 0:05:47]} h5 {[%emt 0:01:18]} 19. Qe2 {[%emt 0:00:10]} b6 {[%emt 0:00:02]} 20. Bxe7 {[%emt 0:00:51]} Qxe7 {[%emt 0:00:03]} 21. b5 {[%emt 0:01:01]} cxb5 {[%emt 0:00:22]} 22. axb5 {[%emt 0:00:02]} a5 {[%emt 0:00:01]} 23. c4 {[%emt 0:01:03]} Qc5 {[%emt 0:00:02]} 24. Rfd1 {[%emt 0:00:20]} Rdg8 {[%emt 0:03:27]} 25. Qe3 {[%emt 0:00:10]} Qxe3 {[%emt 0:01:00]} 26. fxe3 {[%emt 0:00:00]} g4 {[%emt 0:00:01]} 27. hxg4 {[%emt 0:00:22]} Rxg4 {[%emt 0:00:08]} 28. Kf2 {[%emt 0:00:18]} Rhg8 {[%emt 0:00:25]} 29. Rg1 {[%emt 0:00:03]} h4 {[%emt 0:00:08]} 30. Rad1 {[%emt 0:01:29]} Kc8 {[%emt 0:00:08]} 31. Kf3 {[%emt 0:00:45]} Rg3+ {[%emt 0:00:09]} 32. Kf2 {[%emt 0:00:02]} R8g4 {[%emt 0:00:09]} 33. Ra1 {[%emt 0:00:09]} Kd7 {[%emt 0:00:05]} 34. Rae1 {[%emt 0:00:22]} Ke6 {[%emt 0:00:08]} 35. Kf1 {[%emt 0:00:15]} h3 {[%emt 0:00:04]} 36. Re2 {[%emt 0:00:54]} f5 {[%emt 0:04:46]} 37. exf5+ {[%emt 0:00:19]} Kxf5 {[%emt 0:00:02]} 38. e4+ {[%emt 0:00:30]} Ke6 {[%emt 0:00:06]} 39. Rf2 {[%emt 0:00:14]} Rxd3 {[%emt 0:00:27]} 40. Ke2 {[%emt 0:00:13]} Rgg3 $2 {[%emt 0:00:22]} (40... Ra3 41. g3 Rxe4+ 42. Kd2 Rd4+ 43. Ke2 Rxc4) 41. Rff1 {[%emt 0:00:12]} (41. gxh3 $142 Rge3+ 42. Kf1 Rd1+ 43. Kg2 Rxg1+ 44. Kxg1) 41... Rge3+ {[%emt 0:00:03]} (41... Rb3 $142 42. Kf2 Rxg2+ 43. Rxg2 Rb2+ 44. Kg1 Rxg2+ 45. Kh1 Rc2) 42. Kf2 {[%emt 0:00:00]} Rxe4 {[%emt 0:00:17]} 43. gxh3 {[%emt 0:00:02]} Rxh3 {[%emt 0:00:02]} 44. Rg6+ {[%emt 0:00:02]} Ke7 {[%emt 0:00:03]} 45. Rg7+ {[%emt 0:00:03] [#]} Kd6 $1 {[%emt 0:00:09]} 46. Rg6+ {[%emt 0:00:33]} Kc5 {[%emt 0:00:01]} 47. Rc6+ {[%emt 0:00:01]} Kb4 {[%emt 0:00:16]} 48. Rb1+ {[%emt 0:00:02]} Kc3 {[%emt 0:00:11]} (48... Rb3 $142 49. Rc1 a4) 49. Rxc7 {[%emt 0:00:05]} Rf4+ {[%emt 0:00:22]} 50. Kg2 {[%emt 0:00:05]} Rh6 {[%emt 0:00:13]} 51. c5 {[%emt 0:00:28]} Rg6+ {[%emt 0:00:12]} 52. Kh3 {[%emt 0:00:01]} Rf3+ {[%emt 0:00:08]} 53. Kh4 {[%emt 0:00:22]} bxc5 {[%emt 0:00:17]} (53... Kc2 $19 54. Re1 Rf2) 54. b6 $2 {[%emt 0:00:20]} (54. Rxc5+ $17 {was the crucial defense.} Kd4 55. Rc8) 54... Rf4+ $11 (54... Rf8 $19 55. Rh7 (55. Kh5 $2 Rg2 $19) 55... a4) 1-0

[Event "Pia Cramling Ladies Open 2018"]
[Site "Stockholm"]
[Date "2018.09.01"]
[Round "2"]
[White "Berg Laachiri, Susanna"]
[Black "Mariano-Wagman, Cristine Rose"]
[Result "0-1"]
[ECO "B01"]
[WhiteElo "1903"]
[BlackElo "1906"]
[Annotator "NA"]
[PlyCount "52"]
[EventDate "2018.09.01"]
[EventType "swiss"]
[EventCountry "SWE"]
[SourceTitle "playchess.com"]
[Source "ChessBase"]
[SourceQuality "1"]
[TimeControl "1800+10"]

1. e4 {[%emt 0:00:00]} d5 {[%emt 0:00:00]} 2. exd5 {[%emt 0:00:00]} Qxd5 {[%emt 0:00:00]} 3. Nc3 {[%emt 0:00:08]} Qa5 {[%emt 0:00:00]} 4. d4 {[%emt 0:00:12]} Nf6 {[%emt 0:00:08]} 5. Nf3 {[%emt 0:01:01]} Bg4 {[%emt 0:00:05]} 6. Be2 {[%emt 0:00:13]} (6. h3 $16 Bh5 7. Bd2) 6... Nc6 {[%emt 0:00:52]} 7. O-O {[%emt 0:01:12]} O-O-O {[%emt 0:00:11]} 8. Nb5 $19 {[%emt 0:12:43]} (8. Ng5 $11 {and White is okay.} Rxd4 9. Qe1) 8... a6 {[%emt 0:01:54]} 9. Bd2 {[%emt 0:03:00]} Qb6 {[%emt 0:00:05]} 10. Na3 {[%emt 0:01:18]} Bxf3 {[%emt 0:01:50]} 11. Bxf3 {[%emt 0:00:17]} Nxd4 {[%emt 0:01:56]} 12. Be3 {[%emt 0:07:06]} e5 {[%emt 0:01:52]} 13. c3 {[%emt 0:00:20]} Bxa3 {[%emt 0:03:42]} 14. bxa3 {[%emt 0:00:17]} Nxf3+ {[%emt 0:00:04]} 15. Qxf3 {[%emt 0:00:02]} Qe6 {[%emt 0:00:34]} 16. Rab1 {[%emt 0:01:09]} e4 {[%emt 0:00:10]} 17. Qe2 {[%emt 0:00:07]} Rd3 {[%emt 0:00:06]} 18. Qb2 {[%emt 0:00:18]} Qc6 {[%emt 0:01:19]} 19. c4 {[%emt 0:00:37]} Rhd8 {[%emt 0:00:57]} 20. a4 {[%emt 0:00:37]} g6 {[%emt 0:02:04]} 21. Bg5 {[%emt 0:00:31]} R8d6 {[%emt 0:00:22]} 22. c5 {[%emt 0:00:23]} Re6 {[%emt 0:00:18]} 23. Rfd1 {[%emt 0:00:43]} h5 {[%emt 0:01:29]} 24. Rxd3 {[%emt 0:00:22]} exd3 {[%emt 0:00:02]} 25. Qc3 {[%emt 0:00:03]} Ne4 {[%emt 0:00:42]} 26. Qxd3 {[%emt 0:00:30]} Nxg5 {[%emt 0:00:05]} 0-1